fUSD/lending_fUSD_20260601
["ID","MTS","AMOUNT","RATE_DAILY","PERIOD"]
[423691097,1780312265000,-1400.0,0.00029522,60]
[423691110,1780312265000,-1044.03740426,0.00029532,5]
[423691100,1780312265000,-1006.87828977,0.00029527,5]
[423691102,1780312265000,-1072.91504672,0.00029527,5]
[423691103,1780312265000,-1048.46195064,0.00029527,5]
[423691101,1780312265000,-1137.48064878,0.00029527,5]
[423691104,1780312265000,-1028.7220406,0.00029527,5]
[423691105,1780312265000,-1122.33700081,0.00029527,5]
[423691108,1780312265000,-200.0,0.0002953,7]
[423691107,1780312265000,-1395.66611883,0.00029527,5]
[423691093,1780312265000,-1491.61,0.00029519,30]
[423691099,1780312265000,-1026.84738591,0.00029527,5]
[423691086,1780312265000,-2050.45933268,0.000295,2]
[423691064,1780312265000,-854.38,0.00029189,7]
[423691082,1780312265000,-150.0,0.00029452,30]
[423691106,1780312265000,-1142.79687763,0.00029527,5]
[423691065,1780312265000,-710.07,0.000292,7]
[423691066,1780312265000,-889.23,0.000292,7]
[423691074,1780312265000,-200.0,0.0002933,20]
[423691075,1780312265000,-586.83,0.00029354,2]
[423691067,1780312265000,-5134.04,0.000292,14]
[423691073,1780312265000,-200.0,0.0002933,20]
[423691068,1780312265000,-334.34,0.00029201,2]
[423691076,1780312265000,-1491.61,0.00029354,2]
[423691069,1780312265000,-329.94,0.00029201,2]
[423691072,1780312265000,-695.0,0.00029273,4]
[423691071,1780312265000,-329.99,0.00029232,7]
[423691070,1780312265000,-334.45,0.00029232,7]
[423691080,1780312265000,-1000.0,0.0002937,7]
[423691077,1780312265000,-845.53,0.00029354,2]
[423691078,1780312265000,-588.94,0.00029354,2]
[423691079,1780312265000,-854.38,0.00029354,2]
[423691081,1780312265000,-1000.0,0.00029435,7]
[423691083,1780312265000,-1018.47,0.000295,30]
[423691084,1780312265000,-292.41298818,0.000295,2]
[423691085,1780312265000,-2050.45933268,0.000295,2]
[423691087,1780312265000,-2050.45933268,0.000295,2]
[423691109,1780312265000,-579.4,0.00029532,7]
[423691155,1780312265000,-167.72416141,0.00029753,2]
[423691112,1780312265000,-1075.04915873,0.00029532,5]
[423691136,1780312265000,-1491.62,0.00029683,7]
[423691143,1780312265000,-311.1398163,0.00029728,2]
[423691139,1780312265000,-854.46,0.00029683,7]
[423691141,1780312265000,-1000.0,0.00029704,7]
[423691135,1780312265000,-586.83,0.00029683,7]
[423691140,1780312265000,-1000.0,0.000297,7]
[423691146,1780312265000,-421.0,0.00029739,30]
[423691144,1780312265000,-200.0,0.0002973,7]
[423691150,1780312265000,-371.0,0.00029739,30]
[423691152,1780312265000,-180.52886893,0.00029753,2]
[423691147,1780312265000,-162.0,0.00029739,30]
[423691148,1780312265000,-3146.0,0.00029739,30]
[423691151,1780312265000,-168.6079583,0.00029753,2]
[423691149,1780312265000,-533.0,0.00029739,30]
[423691154,1780312265000,-302.9538504,0.00029753,2]
[423691153,1780312265000,-196.51731764,0.00029753,2]
[423691156,1780312265000,-346.28546999,0.00029753,2]
[423691157,1780312265000,-1681.0,0.00029753,30]
[423691158,1780312265000,-656.0,0.00029753,30]
[423691111,1780312265000,-1129.91912807,0.00029532,5]
[423691159,1780312265000,-1197.0,0.00029753,30]
[423691142,1780312265000,-1018.47,0.00029724,30]
[423691138,1780312265000,-588.97,0.00029683,7]
[423691145,1780312265000,-1755.0,0.00029739,30]
[423691134,1780312265000,-833.3,0.00029683,7]
[423691114,1780312265000,-1063.27498479,0.00029532,5]
[423691137,1780312265000,-845.55,0.00029683,7]
[423691115,1780312265000,-1081.97277575,0.00029532,5]
[423691117,1780312265000,-1033.71697561,0.00029532,5]
[423691116,1780312265000,-1018.45653738,0.00029532,5]
[423691118,1780312265000,-1142.91828273,0.00029532,5]
[423691119,1780312265000,-1064.05457797,0.00029532,5]
[423691120,1780312265000,-1011.42043984,0.00029532,5]
[423691121,1780312265000,-1067.88672032,0.00029532,5]
[423691122,1780312265000,-1051.34411026,0.00029532,5]
[423691123,1780312265000,-1013.83377311,0.00029532,5]
[423691113,1780312265000,-1093.61002858,0.00029532,5]
[423691132,1780312265000,-1018.47,0.00029679,30]
[423691125,1780312265000,-1018.47,0.00029545,30]
[423691128,1780312265000,-5134.04,0.000296,14]
[423691127,1780312265000,-889.23,0.000296,7]
[423691126,1780312265000,-1018.47,0.00029589,30]
[423691129,1780312265000,-1000.0,0.0002963,7]
[423691131,1780312265000,-2110.0,0.00029637,2]
[423691130,1780312265000,-1018.47,0.00029634,30]
[423691124,1780312265000,-150.0,0.00029534,2]
[423691133,1780312265000,-588.34,0.00029683,7]
[423691187,1780312266000,-158.64064652,0.00029754,2]
[423691188,1780312266000,-156.23325827,0.00029754,2]
[423691191,1780312266000,-197.4607168,0.00029757,2]
[423691186,1780312266000,-170.59001071,0.00029754,2]
[423691189,1780312266000,-202.33468406,0.00029757,2]
[423691192,1780312266000,-226.2217868,0.00029757,2]
[423691194,1780312266000,-311.04156989,0.00029763,2]
[423691185,1780312266000,-316.83798394,0.00029754,2]
[423691193,1780312266000,-198.71196225,0.00029762,2]
[423691190,1780312266000,-191.17928012,0.00029757,2]
[423691195,1780312266000,-212.2834761,0.00029763,2]
[423691196,1780312266000,-397.90914447,0.00029763,2]
[423691199,1780312266000,-1018.47,0.00029768,30]
[423691205,1780312266000,-504.97704598,0.00029794,7]
[423691204,1780312266000,-1828.0,0.00029778,30]
[423691197,1780312266000,-327.41377494,0.00029763,2]
[423691203,1780312266000,-434.0,0.00029778,30]
[423691200,1780312266000,-1000.0,0.00029772,7]
[423691201,1780312266000,-3818.0,0.00029778,30]
[423691202,1780312266000,-669.0,0.00029778,30]
[423691206,1780312266000,-375.59430154,0.00029806,2]
[423691207,1780312266000,-695.0,0.00029807,4]
[423691198,1780312266000,-381.43313175,0.00029763,2]
[423691183,1780312266000,-328.97560266,0.00029754,2]
[423691160,1780312266000,-706.0,0.00029753,30]
[423691180,1780312266000,-337.26250762,0.00029754,2]
[423691217,1780312266000,-1018.47,0.00029947,30]
[423691161,1780312266000,-310.33079136,0.00029754,2]
[423691170,1780312266000,-350.0749466,0.00029754,2]
[423691164,1780312266000,-332.0184807,0.00029754,2]
[423691162,1780312266000,-371.08241513,0.00029754,2]
[423691163,1780312266000,-504.85052578,0.00029754,2]
[423691171,1780312266000,-338.96287765,0.00029754,2]
[423691168,1780312266000,-591.68253273,0.00029754,2]
[423691165,1780312266000,-219.82987783,0.00029754,2]
[423691167,1780312266000,-309.31605314,0.00029754,2]
[423691184,1780312266000,-323.91238059,0.00029754,2]
[423691169,1780312266000,-334.15723364,0.00029754,2]
[423691172,1780312266000,-357.10742706,0.00029754,2]
[423691175,1780312266000,-313.45268245,0.00029754,2]
[423691173,1780312266000,-199.04989299,0.00029754,2]
[423691176,1780312266000,-313.25954036,0.00029754,2]
[423691174,1780312266000,-325.91156834,0.00029754,2]
[423691182,1780312266000,-410.62652089,0.00029754,2]
[423691177,1780312266000,-581.07516271,0.00029754,2]
[423691181,1780312266000,-369.61261634,0.00029754,2]
[423691179,1780312266000,-409.28723643,0.00029754,2]
[423691178,1780312266000,-165.02735787,0.00029754,2]
[423691166,1780312266000,-555.95997886,0.00029754,2]
[423691208,1780312266000,-1018.47,0.00029813,30]
[423691253,1780312266000,-26905.0,0.00030079,2]
[423691212,1780312266000,-80337.55795135,0.000299,2]
[423691239,1780312266000,-161.0,0.0003,30]
[423691240,1780312266000,-399.0,0.0003,7]
[423691241,1780312266000,-889.23,0.0003,7]
[423691244,1780312266000,-200.0,0.0003,2]
[423691242,1780312266000,-5134.04,0.0003,14]
[423691243,1780312266000,-1666.66666667,0.0003,2]
[423691245,1780312266000,-200.0,0.0003,2]
[423691246,1780312266000,-650.0,0.0003,2]
[423691247,1780312266000,-200.0,0.0003,2]
[423691250,1780312266000,-215.65015035,0.0003,7]
[423691238,1780312266000,-990.02,0.0003,7]
[423691248,1780312266000,-194.674,0.0003,22]
[423691252,1780312266000,-1018.47,0.00030037,30]
[423691249,1780312266000,-200.0,0.0003,2]
[423691254,1780312266000,-1018.47,0.00030082,30]
[423691255,1780312266000,-582.330149,0.000301,15]
[423691256,1780312266000,-107821.1202053,0.00030109,2]
[423691260,1780312266000,-185.06963162,0.0003013,7]
[423691258,1780312266000,-1018.47,0.00030126,30]
[423691257,1780312266000,-1000.0,0.00030118,7]
[423691261,1780312266000,-821765.32762606,0.0003013,7]
[423691210,1780312266000,-1018.47,0.00029858,30]
[423691251,1780312266000,-209.21103511,0.0003,7]
[423691236,1780312266000,-1000.0,0.0003,2]
[423691259,1780312266000,-235.76977797,0.00030129,2]
[423691235,1780312266000,-3366.30597628,0.0003,10]
[423691237,1780312266000,-166.02286567,0.0003,2]
[423691213,1780312266000,-215.65015035,0.000299,30]
[423691211,1780312266000,-1000.0,0.00029872,7]
[423691209,1780312266000,-246.990446,0.00029829,5]
[423691214,1780312266000,-209.21103511,0.000299,30]
[423691215,1780312266000,-1018.47,0.00029903,30]
[423691216,1780312266000,-1000.0,0.00029918,7]
[423691222,1780312266000,-151.0,0.00029997,7]
[423691219,1780312266000,-1029.05776363,0.00029987,7]
[423691220,1780312266000,-241.43459017,0.0002999,2]
[423691218,1780312266000,-1089.46981553,0.00029971,7]
[423691221,1780312266000,-1018.47,0.00029992,30]
[423691226,1780312266000,-362.07748487,0.0003,2]
[423691234,1780312266000,-1851.21505152,0.0003,2]
[423691233,1780312266000,-1124.32190287,0.0003,2]
[423691231,1780312266000,-20245.13627805,0.0003,2]
[423691223,1780312266000,-293.76,0.00029999,3]
[423691227,1780312266000,-7000.0,0.0003,3]
[423691232,1780312266000,-87877.0,0.0003,2]
[423691230,1780312266000,-165.58,0.0003,30]
[423691229,1780312266000,-5716.8758898,0.0003,14]
[423691224,1780312266000,-293.77,0.00029999,3]
[423691225,1780312266000,-109001.54232865,0.0003,5]
[423691228,1780312266000,-2000.0,0.0003,3]
[423691262,1780312267000,-273.05334531,0.0003013,7]
[423691264,1780312267000,-574.98213483,0.000129,2]
[423691267,1780312267000,-200.0,0.00028761,2]
[423691265,1780312267000,-1363.67066583,0.000129,2]
[423691273,1780312267000,-1000.0,0.0003013,7]
[423691263,1780312267000,-458.87313864,0.000129,2]
[423691272,1780312267000,-9609.14082768,0.0003013,7]
[423691274,1780312267000,-2565.98624479,0.0003013,7]
[423691270,1780312267000,-2868.59911662,0.0003013,7]
[423691271,1780312267000,-200.0,0.00027971,2]
[423691266,1780312267000,-1119.67961966,0.000129,2]
[423691268,1780312267000,-58946.60140814,0.0003013,7]
[423691269,1780312267000,-28528.41243639,0.0003013,7]
[423691281,1780312269000,-4212.16920529,0.000109,2]
[423691283,1780312269000,-151.0,0.00011124,2]
[423691284,1780312269000,-1333.19560512,0.00013181,2]
[423691280,1780312269000,-329.87030458,0.000109,2]
[423691278,1780312269000,-12751.69092961,0.000109,2]
[423691279,1780312269000,-1121.38980766,0.000109,2]
[423691276,1780312269000,-1362.87164236,0.0003013,7]
[423691277,1780312269000,-2109.3632371,0.0003013,7]
[423691275,1780312269000,-792.10950028,0.0003013,7]
[423691282,1780312269000,-1238.40304045,0.000109,2]
[423691285,1780312276000,2000.0,0.00028502,120]
[423691286,1780312296000,1600.0,0.00027212,120]
[423691287,1780312331000,420.88,0.00030136,120]
[423691288,1780312372000,229.31233526,8.543e-05,7]
[423691289,1780312373000,343.96850293,9.045e-05,7]
[423691296,1780312534000,-150.0,8.444e-05,2]
[423691297,1780312550000,150.0,8.375e-05,7]
[423691298,1780312554000,185.85801166,8.543e-05,7]
[423691299,1780312588000,-2632.174,8.531e-05,2]
[423691300,1780312614000,173.39,0.00028973,120]
[423691302,1780312641000,-162.391,8.531e-05,2]
[423691303,1780312694000,-500.0,8.552e-05,2]
[423691363,1780312726000,238.0,0.00030137,120]
[423691365,1780312747000,-250.0,8.574e-05,2]
[423691366,1780312801000,-3950.00495115,8.601e-05,2]
[423691368,1780312854000,-497.63122671,8.601e-05,2]
[423691369,1780312870000,1790.98882865,8.704e-05,3]
[423691372,1780312907000,-1200.0,8.604e-05,2]
[423691373,1780312961000,-500.0,8.605e-05,2]
[423691375,1780312978000,-250.0,8.605e-05,2]
[423691376,1780312978000,-304.3774,8.605e-05,2]
[423691374,1780312978000,-363.67169068,8.605e-05,2]
[423691379,1780312978000,-158.972073,8.616e-05,2]
[423691380,1780312978000,-192.88702095,8.655e-05,2]
[423691378,1780312978000,-1230.09181537,8.605e-05,2]
[423691377,1780312978000,-2500.0,8.605e-05,2]
[423691381,1780312980000,-170.78466973,8.655e-05,2]
[423691382,1780312981000,-150.0,8.703e-05,2]
[423691384,1780312981000,-484.89706075,8.704e-05,2]
[423691386,1780312981000,-500.0,8.704e-05,2]
[423691385,1780312981000,-594.71077695,8.704e-05,2]
[423691387,1780312981000,-171.86060588,8.704e-05,2]
[423691383,1780312981000,-500.0,8.704e-05,2]
[423691389,1780312981000,-500.0,8.704e-05,2]
[423691391,1780312981000,-244.73663055,8.704e-05,2]
[423691390,1780312981000,-500.0,8.704e-05,2]
[423691392,1780312981000,-500.0,8.704e-05,2]
[423691393,1780312981000,-183.01025614,8.704e-05,2]
[423691388,1780312981000,-500.0,8.704e-05,2]
[423691394,1780312982000,-316.98974386,8.704e-05,2]
[423691395,1780312982000,-500.0,8.704e-05,2]
[423691396,1780312982000,-500.0,8.704e-05,2]
[423691398,1780312982000,-500.0,8.704e-05,2]
[423691397,1780312982000,-500.0,8.704e-05,2]
[423691400,1780312982000,-500.0,8.704e-05,2]
[423691399,1780312982000,-500.0,8.704e-05,2]
[423691401,1780312982000,-500.0,8.704e-05,2]
[423691402,1780312982000,-500.0,8.704e-05,2]
[423691404,1780312982000,-183.01025614,8.704e-05,2]
[423691405,1780312982000,-316.98974386,8.704e-05,2]
[423691407,1780312982000,-500.0,8.704e-05,2]
[423691408,1780312982000,-500.0,8.704e-05,2]
[423691406,1780312982000,-500.0,8.704e-05,2]
[423691409,1780312982000,-500.0,8.704e-05,2]
[423691411,1780312982000,-267.3444345,8.704e-05,2]
[423691410,1780312982000,-500.0,8.704e-05,2]
[423691412,1780312982000,-500.0,8.704e-05,2]
[423691413,1780312982000,-500.0,8.704e-05,2]
[423691414,1780312982000,-500.0,8.704e-05,2]
[423691403,1780312982000,-500.0,8.704e-05,2]
[423691416,1780312983000,-84.33417836,8.704e-05,2]
[423691417,1780312983000,-500.0,8.704e-05,2]
[423691418,1780312983000,-500.0,8.704e-05,2]
[423691419,1780312983000,-500.0,8.704e-05,2]
[423691415,1780312983000,-415.66582164,8.704e-05,2]
[423691422,1780312983000,-500.0,8.704e-05,2]
[423691424,1780312983000,-515.03351673,8.704e-05,2]
[423691423,1780312983000,-500.0,8.704e-05,2]
[423691425,1780312983000,-500.0,8.704e-05,2]
[423691420,1780312983000,-500.0,8.704e-05,2]
[423691421,1780312983000,-500.0,8.704e-05,2]
[423691427,1780312984000,-200.63230491,8.705e-05,2]
[423691428,1780312984000,-163.03938577,8.705e-05,2]
[423691426,1780312984000,-200.0,8.705e-05,2]
[423691429,1780313014000,-3950.00495115,8.705e-05,2]
[423691432,1780313015000,-500.0,8.704e-05,2]
[423691433,1780313015000,-500.0,8.704e-05,2]
[423691431,1780313015000,170.51,8.531e-05,2]
[423691430,1780313015000,2763.783,8.531e-05,2]
[423691437,1780313016000,-2486.98556538,8.705e-05,2]
[423691436,1780313016000,-299.99,8.705e-05,2]
[423691435,1780313016000,-2213.02443462,8.705e-05,2]
[423691434,1780313016000,-3836.96061423,8.705e-05,2]
[423691438,1780313035000,-2065.707,8.705e-05,2]
[423691439,1780313041000,-5000.0,8.705e-05,2]
[423691440,1780313042000,-447.29743462,8.705e-05,2]
[423691441,1780313042000,-482.97,8.705e-05,2]
[423691444,1780313042000,-318.6,8.705e-05,2]
[423691442,1780313042000,-150.99,8.705e-05,2]
[423691443,1780313042000,-2874.79,8.705e-05,2]
[423691445,1780313042000,-725.35256538,8.705e-05,2]
[423691447,1780313044000,-4850.0,8.705e-05,2]
[423691446,1780313044000,-150.0,8.704e-05,2]
[423691448,1780313045000,-5000.0,8.705e-05,2]
[423691450,1780313046000,-5000.0,8.705e-05,2]
[423691449,1780313046000,-5000.0,8.705e-05,2]
[423691451,1780313047000,-5000.0,8.705e-05,2]
[423691452,1780313048000,-5000.0,8.705e-05,2]
[423691453,1780313049000,-5000.0,8.705e-05,2]
[423691455,1780313050000,-1008.75183792,8.704e-05,2]
[423691454,1780313050000,-2500.0,8.605e-05,2]
[423691456,1780313050000,-1491.24816208,8.705e-05,2]
[423691457,1780313051000,-5000.0,8.705e-05,2]
[423691458,1780313052000,-5000.0,8.705e-05,2]
[423691460,1780313053000,-5000.0,8.705e-05,2]
[423691459,1780313053000,-5000.0,8.705e-05,2]
[423691461,1780313054000,-5000.0,8.705e-05,2]
[423691462,1780313055000,-5000.0,8.705e-05,2]
[423691463,1780313056000,-5000.0,8.705e-05,2]
[423691464,1780313057000,-5000.0,8.705e-05,2]
[423691465,1780313058000,-5000.0,8.705e-05,2]
[423691466,1780313059000,-5000.0,8.705e-05,2]
[423691467,1780313059000,-5000.0,8.705e-05,2]
[423691468,1780313061000,-5000.0,8.705e-05,2]
[423691469,1780313062000,-5000.0,8.705e-05,2]
[423691470,1780313063000,-5000.0,8.705e-05,2]
[423691471,1780313064000,-5000.0,8.705e-05,2]
[423691472,1780313065000,-5000.0,8.705e-05,2]
[423691473,1780313066000,-5000.0,8.705e-05,2]
[423691474,1780313067000,-5000.0,8.705e-05,2]
[423691476,1780313143000,152.0,9.059e-05,7]
[423691479,1780313212000,-0.44389711,8.703e-05,2]
[423691478,1780313212000,-166.90124495,8.662e-05,2]
[423691477,1780313212000,-150.0,8.402e-05,2]
[423691480,1780313318000,-2500.0,8.605e-05,2]
[423691481,1780313333000,-209.21103511,8.605e-05,2]
[423691482,1780313341000,2000.0,0.00030136,120]
[423691483,1780313343000,242.80857143,0.0001,3]
[423691484,1780313371000,-180.64,8.573e-05,2]
[423691485,1780313386000,-250.0,8.605e-05,2]
[423691486,1780313424000,-2250.0,8.605e-05,2]
[423691504,1780313439000,-3950.00495115,8.605e-05,2]
[423691507,1780313440000,-304.59334934,8.605e-05,2]
[423691505,1780313440000,-286941.29273981,8.605e-05,2]
[423691506,1780313440000,-50781.00195073,8.605e-05,2]
[423691530,1780313441000,-323.13825908,8.704e-05,2]
[423691531,1780313441000,-500.0,8.704e-05,2]
[423691533,1780313441000,-227.34415735,8.704e-05,2]
[423691532,1780313441000,-500.0,8.704e-05,2]
[423691535,1780313441000,-624.36062086,8.704e-05,2]
[423691534,1780313441000,-175.51509472,8.704e-05,2]
[423691537,1780313441000,-624.36062086,8.704e-05,2]
[423691539,1780313441000,-624.36062086,8.704e-05,2]
[423691541,1780313441000,-624.36062086,8.704e-05,2]
[423691536,1780313441000,-624.36062086,8.704e-05,2]
[423691529,1780313441000,-534.55002216,8.704e-05,2]
[423691540,1780313441000,-624.36062086,8.704e-05,2]
[423691538,1780313441000,-624.36062086,8.704e-05,2]
[423691528,1780313441000,-495.76586126,8.704e-05,2]
[423691522,1780313441000,-150.0,8.704e-05,2]
[423691525,1780313441000,-500.0,8.704e-05,2]
[423691526,1780313441000,-500.0,8.704e-05,2]
[423691521,1780313441000,-150.0,8.703e-05,2]
[423691542,1780313441000,-624.36062086,8.704e-05,2]
[423691523,1780313441000,-150.0,8.704e-05,2]
[423691520,1780313441000,-1229.5132104,8.703e-05,2]
[423691518,1780313441000,-18900.0064418,8.701e-05,2]
[423691519,1780313441000,-769.55610299,8.703e-05,2]
[423691517,1780313441000,-12714.74144193,8.695e-05,2]
[423691516,1780313441000,-1200.0,8.694e-05,2]
[423691515,1780313441000,-300.0,8.694e-05,2]
[423691514,1780313441000,-250.0,8.648e-05,2]
[423691513,1780313441000,-1157487.99999951,8.605e-05,2]
[423691512,1780313441000,-535.10700946,8.605e-05,2]
[423691527,1780313441000,-439.52184623,8.704e-05,2]
[423691543,1780313441000,-624.36062086,8.704e-05,2]
[423691524,1780313441000,-500.0,8.704e-05,2]
[423691544,1780313441000,-624.36062086,8.704e-05,2]
[423691545,1780313441000,-624.36062086,8.704e-05,2]
[423691576,1780313441000,-624.36062086,8.704e-05,2]
[423691575,1780313441000,-624.36062086,8.704e-05,2]
[423691572,1780313441000,-624.36062086,8.704e-05,2]
[423691571,1780313441000,-624.36062086,8.704e-05,2]
[423691573,1780313441000,-624.36062086,8.704e-05,2]
[423691569,1780313441000,-624.36062086,8.704e-05,2]
[423691568,1780313441000,-624.36062086,8.704e-05,2]
[423691567,1780313441000,-624.36062086,8.704e-05,2]
[423691570,1780313441000,-624.36062086,8.704e-05,2]
[423691566,1780313441000,-624.36062086,8.704e-05,2]
[423691565,1780313441000,-624.36062086,8.704e-05,2]
[423691564,1780313441000,-624.36062086,8.704e-05,2]
[423691563,1780313441000,-624.36062086,8.704e-05,2]
[423691561,1780313441000,-624.36062086,8.704e-05,2]
[423691574,1780313441000,-624.36062086,8.704e-05,2]
[423691562,1780313441000,-624.36062086,8.704e-05,2]
[423691547,1780313441000,-624.36062086,8.704e-05,2]
[423691560,1780313441000,-624.36062086,8.704e-05,2]
[423691546,1780313441000,-624.36062086,8.704e-05,2]
[423691548,1780313441000,-624.36062086,8.704e-05,2]
[423691549,1780313441000,-624.36062086,8.704e-05,2]
[423691552,1780313441000,-624.36062086,8.704e-05,2]
[423691551,1780313441000,-624.36062086,8.704e-05,2]
[423691550,1780313441000,-624.36062086,8.704e-05,2]
[423691555,1780313441000,-624.36062086,8.704e-05,2]
[423691556,1780313441000,-624.36062086,8.704e-05,2]
[423691559,1780313441000,-624.36062086,8.704e-05,2]
[423691557,1780313441000,-624.36062086,8.704e-05,2]
[423691554,1780313441000,-624.36062086,8.704e-05,2]
[423691553,1780313441000,-624.36062086,8.704e-05,2]
[423691558,1780313441000,-624.36062086,8.704e-05,2]
[423691613,1780313442000,-622.04817412,8.704e-05,2]
[423691610,1780313442000,-622.04817412,8.704e-05,2]
[423691608,1780313442000,-622.04817412,8.704e-05,2]
[423691609,1780313442000,-622.04817412,8.704e-05,2]
[423691606,1780313442000,-622.04817412,8.704e-05,2]
[423691611,1780313442000,-622.04817412,8.704e-05,2]
[423691605,1780313442000,-622.04817412,8.704e-05,2]
[423691623,1780313442000,-4999.99,8.704e-05,2]
[423691604,1780313442000,-622.04817412,8.704e-05,2]
[423691607,1780313442000,-622.04817412,8.704e-05,2]
[423691616,1780313442000,-635.00751107,8.704e-05,2]
[423691620,1780313442000,-635.00751107,8.704e-05,2]
[423691617,1780313442000,-635.00751107,8.704e-05,2]
[423691612,1780313442000,-622.04817412,8.704e-05,2]
[423691618,1780313442000,-635.00751107,8.704e-05,2]
[423691615,1780313442000,-635.00751107,8.704e-05,2]
[423691621,1780313442000,-635.00751107,8.704e-05,2]
[423691619,1780313442000,-635.00751107,8.704e-05,2]
[423691622,1780313442000,-635.00751107,8.704e-05,2]
[423691624,1780313442000,-9999.99,8.704e-05,2]
[423691602,1780313442000,-622.04817412,8.704e-05,2]
[423691626,1780313442000,-299.99,8.705e-05,2]
[423691614,1780313442000,-622.04817412,8.704e-05,2]
[423691603,1780313442000,-622.04817412,8.704e-05,2]
[423691591,1780313442000,-622.04817412,8.704e-05,2]
[423691598,1780313442000,-622.04817412,8.704e-05,2]
[423691630,1780313442000,-114892.37,8.705e-05,2]
[423691579,1780313442000,-624.36062086,8.704e-05,2]
[423691578,1780313442000,-624.36062086,8.704e-05,2]
[423691580,1780313442000,-624.36062086,8.704e-05,2]
[423691582,1780313442000,-622.04817412,8.704e-05,2]
[423691584,1780313442000,-622.04817412,8.704e-05,2]
[423691583,1780313442000,-622.04817412,8.704e-05,2]
[423691577,1780313442000,-624.36062086,8.704e-05,2]
[423691581,1780313442000,-624.36062086,8.704e-05,2]
[423691588,1780313442000,-622.04817412,8.704e-05,2]
[423691587,1780313442000,-622.04817412,8.704e-05,2]
[423691592,1780313442000,-622.04817412,8.704e-05,2]
[423691590,1780313442000,-622.04817412,8.704e-05,2]
[423691593,1780313442000,-622.04817412,8.704e-05,2]
[423691589,1780313442000,-622.04817412,8.704e-05,2]
[423691585,1780313442000,-622.04817412,8.704e-05,2]
[423691586,1780313442000,-622.04817412,8.704e-05,2]
[423691595,1780313442000,-622.04817412,8.704e-05,2]
[423691594,1780313442000,-622.04817412,8.704e-05,2]
[423691597,1780313442000,-622.04817412,8.704e-05,2]
[423691596,1780313442000,-622.04817412,8.704e-05,2]
[423691599,1780313442000,-622.04817412,8.704e-05,2]
[423691600,1780313442000,-622.04817412,8.704e-05,2]
[423691601,1780313442000,-622.04817412,8.704e-05,2]
[423691632,1780313442000,-9999.99,8.705e-05,2]
[423691638,1780313442000,-250.0,9.466e-05,2]
[423691634,1780313442000,-180.64,9.049e-05,2]
[423691653,1780313442000,-318.52927345,0.0001,2]
[423691659,1780313442000,-207764.38249351,0.000103,2]
[423691660,1780313442000,-166.66,0.00010316,2]
[423691668,1780313442000,-3405.36434717,0.0001069,2]
[423691662,1780313442000,-180.64,0.00010478,2]
[423691667,1780313442000,-166.66,0.00010635,2]
[423691661,1780313442000,-4000.0,0.00010475,2]
[423691664,1780313442000,-2351.0,0.0001052,2]
[423691663,1780313442000,-587.0,0.0001052,2]
[423691666,1780313442000,-746.45307978,0.000106,2]
[423691669,1780313442000,-841399.09332627,0.000107,2]
[423691670,1780313442000,-2195668.86484857,0.000107,2]
[423691671,1780313442000,-1500.0,0.000107,2]
[423691676,1780313442000,-160.0,0.00010733,2]
[423691673,1780313442000,-400.0,0.000107,2]
[423691672,1780313442000,-250.0,0.000107,2]
[423691674,1780313442000,-400.0,0.000107,2]
[423691678,1780313442000,-17196.83287661,0.000109,2]
[423691675,1780313442000,-4000.0,0.00010731,2]
[423691679,1780313442000,-17196.83287661,0.000109,2]
[423691677,1780313442000,-17196.83287665,0.000109,2]
[423691680,1780313442000,-166.66,0.00010955,2]
[423691633,1780313442000,-14741.62818237,9.04e-05,2]
[423691656,1780313442000,-2377.90963851,0.00010216,2]
[423691657,1780313442000,-4000.0,0.0001022,2]
[423691665,1780313442000,-433.0,0.00010531,2]
[423691652,1780313442000,-350.06679062,0.0001,2]
[423691628,1780313442000,-150.99,8.705e-05,2]
[423691650,1780313442000,-166.66,9.996e-05,2]
[423691631,1780313442000,-9999.99,8.705e-05,2]
[423691629,1780313442000,-81641.36,8.705e-05,2]
[423691627,1780313442000,-999.99,8.705e-05,2]
[423691625,1780313442000,-200.0,8.705e-05,2]
[423691635,1780313442000,-1347.8,9.267e-05,2]
[423691636,1780313442000,-236.97,9.269e-05,2]